fUST/lending_fUST_20250801
["ID","MTS","AMOUNT","RATE_DAILY","PERIOD"]
[376466243,1753987848450,-460.0,0.00019178,2]
[376466246,1753987848459,-500.0,0.00019178,2]
[376466247,1753987848468,-460.0,0.00019178,2]
[376466249,1753987848478,-151.0,0.00019178,2]
[376466251,1753987848488,-460.0,0.00019178,2]
[376466254,1753987848499,-460.0,0.00019178,2]
[376466255,1753987848510,-275.92691267,0.00019178,2]
[376466258,1753987848519,-151.0,0.00019178,2]
[376466260,1753987848530,-460.0,0.00019178,2]
[376466262,1753987848540,-460.0,0.00019178,2]
[376466264,1753987848550,-460.0,0.00019178,2]
[376466266,1753987848559,-151.0,0.00019178,2]
[376466268,1753987848569,-460.0,0.00019178,2]
[376466270,1753987848579,-241.47190198,0.00019178,2]
[376466272,1753987848588,-460.0,0.00019178,2]
[376466274,1753987848598,-500.0,0.00019178,2]
[376466276,1753987848607,-500.0,0.00019178,2]
[376466278,1753987848617,-151.0,0.00019178,2]
[376466280,1753987848626,-460.0,0.00019178,2]
[376466282,1753987848635,-460.0,0.00019178,2]
[376466284,1753987848644,-460.0,0.00019178,2]
[376466286,1753987848653,-460.0,0.00019178,2]
[376466288,1753987848662,-152.04757348,0.00019178,2]
[376466290,1753987848673,-460.0,0.00019178,2]
[376466292,1753987848683,-500.0,0.00019178,2]
[376466294,1753987848694,-185.1748,0.00019178,2]
[376466296,1753987848703,-151.0,0.00019178,2]
[376466298,1753987848712,-218.15132,0.00019178,2]
[376466300,1753987848722,-460.0,0.00019178,2]
[376466302,1753987848731,-460.0,0.00019178,2]
[376466304,1753987848740,-151.0,0.00019178,2]
[376466306,1753987848750,-460.0,0.00019178,2]
[376466308,1753987848759,-460.0,0.00019178,2]
[376466310,1753987848768,-151.0,0.00019178,2]
[376466312,1753987848778,-460.0,0.00019178,2]
[376466314,1753987848787,-151.0,0.00019178,2]
[376466316,1753987848797,-151.0,0.00019178,2]
[376466318,1753987848806,-460.0,0.00019178,2]
[376466320,1753987848815,-182.92149,0.00019178,2]
[376466322,1753987848825,-182.92149,0.00019178,2]
[376466324,1753987848834,-182.92149,0.00019178,2]
[376466326,1753987848844,-182.92149,0.00019178,2]
[376466328,1753987848853,-182.92149,0.00019178,2]
[376466330,1753987848863,-151.0,0.00019178,2]
[376466332,1753987848873,-182.92149,0.00019178,2]
[376466334,1753987848882,-151.0,0.00019178,2]
[376466336,1753987848892,-460.0,0.00019178,2]
[376466338,1753987848901,-256.81509,0.00019178,2]
[376466340,1753987848910,-460.0,0.00019178,2]
[376466342,1753987848919,-151.0,0.00019178,2]
[376466344,1753987848929,-182.92149,0.00019178,2]
[376466346,1753987848938,-182.92149,0.00019178,2]
[376466348,1753987848949,-182.92149,0.00019178,2]
[376466350,1753987848959,-151.0,0.00019178,2]
[376466352,1753987848969,-648.02,0.00019178,2]
[376466354,1753987848979,-460.0,0.00019178,2]
[376466356,1753987848988,-182.92149,0.00019178,2]
[376466359,1753987848998,-460.0,0.00019178,2]
[376466361,1753987849007,-182.92149,0.00019178,2]
[376466363,1753987849016,-182.92149,0.00019178,2]
[376466365,1753987849027,-151.0,0.00019178,2]
[376466367,1753987849036,-460.0,0.00019178,2]
[376466369,1753987849045,-460.0,0.00019178,2]
[376466371,1753987849054,-383.15816031,0.00019178,2]
[376466373,1753987849064,-460.0,0.00019178,2]
[376466375,1753987849073,-500.0,0.00019178,2]
[376466377,1753987849082,-460.0,0.00019178,2]
[376466379,1753987849091,-460.0,0.00019178,2]
[376466381,1753987849101,-4558.09,0.00019178,2]
[376466383,1753987849110,-500.0,0.00019178,2]
[376466385,1753987849119,-600.0,0.00019178,2]
[376466387,1753987849129,-500.0,0.00019178,2]
[376466389,1753987849138,-913.14,0.00019178,2]
[376466391,1753987849148,-500.0,0.00019178,2]
[376466393,1753987849157,-500.0,0.00019178,2]
[376466395,1753987849167,-500.0,0.00019178,2]
[376466397,1753987849177,-500.0,0.00019178,2]
[376466399,1753987849187,-500.0,0.00019178,2]
[376466401,1753987849198,-500.0,0.00019178,2]
[376466403,1753987849207,-460.0,0.00019178,2]
[376466405,1753987849217,-500.0,0.00019178,2]
[376466407,1753987849227,-500.0,0.00019178,2]
[376466409,1753987849237,-460.0,0.00019178,2]
[376466411,1753987849248,-846.47,0.00019178,2]
[376466413,1753987849259,-1152.94,0.00019178,2]
[376466415,1753987849268,-953.11,0.00019178,2]
[376466417,1753987849278,-460.0,0.00019178,2]
[376466419,1753987849288,-460.0,0.00019178,2]
[376466421,1753987849298,-460.0,0.00019178,2]
[376466423,1753987849308,-475.14,0.00019178,2]
[376466425,1753987849317,-151.0,0.00019178,2]
[376466427,1753987849327,-151.0,0.00019178,2]
[376466429,1753987849337,-971.24,0.00019178,2]
[376466431,1753987849346,-460.0,0.00019178,2]
[376466433,1753987849356,-808.82,0.00019178,2]
[376466435,1753987849365,-460.0,0.00019178,2]
[376466437,1753987849375,-2530.03,0.00019178,2]
[376466439,1753987849385,-340.45669823,0.00019178,2]
[376466441,1753987849394,-460.0,0.00019178,2]
[376466443,1753987849404,-1026.22,0.00019178,2]
[376466445,1753987849414,-2592.55,0.00019178,2]
[376466447,1753987849424,-500.0,0.00019178,2]
[376466450,1753987849433,-460.0,0.00019178,2]
[376466452,1753987849447,-610.31,0.00019178,2]
[376466454,1753987849456,-460.0,0.00019178,2]
[376466456,1753987849466,-460.0,0.00019178,2]
[376466458,1753987849476,-460.0,0.00019178,2]
[376466460,1753987849485,-460.0,0.00019178,2]
[376466462,1753987849495,-462.894678,0.00019178,2]
[376466464,1753987849510,-460.0,0.00019178,2]
[376466466,1753987849520,-224.718233,0.00019178,2]
[376466468,1753987849530,-1054.41,0.00019178,2]
[376466470,1753987849540,-460.0,0.00019178,2]
[376466472,1753987849550,-460.0,0.00019178,2]
[376466475,1753987849560,-4908.99,0.00019178,2]
[376466477,1753987849570,-460.0,0.00019178,2]
[376466479,1753987849580,-1238.48,0.00019178,2]
[376466481,1753987849591,-460.0,0.00019178,2]
[376466483,1753987849600,-1960.09,0.00019178,2]
[376466485,1753987849610,-2498.72,0.00019178,2]
[376466487,1753987849619,-460.0,0.00019178,2]
[376466489,1753987849628,-460.0,0.00019178,2]
[376466491,1753987849638,-460.0,0.00019178,2]
[376466493,1753987849648,-460.0,0.00019178,2]
[376466495,1753987849657,-460.0,0.00019178,2]
[376466497,1753987849668,-560.22894009,0.00019178,2]
[376466499,1753987849678,-460.0,0.00019178,2]
[376466501,1753987849688,-460.0,0.00019178,2]
[376466503,1753987849699,-3474.66,0.00019178,2]
[376466505,1753987849708,-460.0,0.00019178,2]
[376466507,1753987849718,-460.0,0.00019178,2]
[376466509,1753987849727,-774.36,0.00019178,2]
[376466511,1753987849736,-4747.28,0.00019178,2]
[376466513,1753987849746,-986.93,0.00019178,2]
[376466515,1753987849756,-460.0,0.00019178,2]
[376466518,1753987849766,-460.0,0.00019178,2]
[376466520,1753987849776,-1163.73,0.00019178,2]
[376466522,1753987849786,-611.36,0.00019178,2]
[376466524,1753987849796,-460.0,0.00019178,2]
[376466526,1753987849806,-672.93,0.00019178,2]
[376466528,1753987849815,-406.6499718,0.00019178,2]
[376466530,1753987849825,-460.0,0.00019178,2]
[376466532,1753987849835,-798.22,0.00019178,2]
[376466534,1753987849844,-460.0,0.00019178,2]
[376466536,1753987849854,-466.73039612,0.00019178,2]
[376466538,1753987849863,-460.0,0.00019178,2]
[376466540,1753987849874,-460.0,0.00019178,2]
[376466542,1753987849884,-460.0,0.00019178,2]
[376466544,1753987849894,-460.0,0.00019178,2]
[376466547,1753987849905,-460.0,0.00019178,2]
[376466549,1753987849915,-460.0,0.00019178,2]
[376466551,1753987849925,-935.42,0.00019178,2]
[376466553,1753987849935,-460.0,0.00019178,2]
[376466555,1753987849946,-577.01,0.00019178,2]
[376466557,1753987849956,-2270.08,0.00019178,2]
[376466559,1753987849965,-460.0,0.00019178,2]
[376466561,1753987849975,-460.0,0.00019178,2]
[376466563,1753987849985,-460.0,0.00019178,2]
[376466565,1753987849995,-151.0,0.00019178,2]
[376466567,1753987850006,-1450.23,0.00019178,2]
[376466569,1753987850015,-151.0,0.00019178,2]
[376466571,1753987850025,-460.0,0.00019178,2]
[376466573,1753987850034,-460.0,0.00019178,2]
[376466575,1753987850043,-460.0,0.00019178,2]
[376466577,1753987850053,-962.97,0.00019178,2]
[376466579,1753987850063,-460.0,0.00019178,2]
[376466581,1753987850072,-1160.47,0.00019178,2]
[376466583,1753987850082,-460.0,0.00019178,2]
[376466585,1753987850091,-151.0,0.00019178,2]
[376466587,1753987850100,-3280.35,0.00019178,2]
[376466589,1753987850110,-460.0,0.00019178,2]
[376466591,1753987850119,-828.27,0.00019178,2]
[376466593,1753987850129,-460.0,0.00019178,2]
[376466595,1753987850139,-460.0,0.00019178,2]
[376466597,1753987850148,-460.0,0.00019178,2]
[376466600,1753987850158,-460.0,0.00019178,2]
[376466602,1753987850167,-460.0,0.00019178,2]
[376466604,1753987850177,-1003.63,0.00019178,2]
[376466606,1753987850186,-177.038864,0.00019178,2]
[376466608,1753987850196,-177.038864,0.00019178,2]
[376466610,1753987850206,-177.038864,0.00019178,2]
[376466612,1753987850215,-177.038864,0.00019178,2]
[376466614,1753987850225,-177.038864,0.00019178,2]
[376466616,1753987850234,-177.038864,0.00019178,2]
[376466618,1753987850244,-657.73,0.00019178,2]
[376466620,1753987850253,-177.038864,0.00019178,2]
[376466622,1753987850262,-177.038864,0.00019178,2]
[376466624,1753987850272,-177.038864,0.00019178,2]
[376466626,1753987850282,-460.0,0.00019178,2]
[376466628,1753987850291,-177.038864,0.00019178,2]
[376466630,1753987850301,-460.0,0.00019178,2]
[376466632,1753987850310,-177.038864,0.00019178,2]
[376466634,1753987850320,-177.038864,0.00019178,2]
[376466636,1753987850330,-460.0,0.00019178,2]
[376466638,1753987850340,-151.0,0.00019178,2]
[376466640,1753987850349,-1025.69,0.00019178,2]
[376466642,1753987850359,-460.0,0.00019178,2]
[376466644,1753987850368,-1042.48,0.00019178,2]
[376466646,1753987850378,-333.11793302,0.00019178,2]
[376466648,1753987850387,-460.0,0.00019178,2]
[376466650,1753987850396,-460.0,0.00019178,2]
[376466652,1753987850406,-4574.09,0.00019178,2]
[376466654,1753987850417,-1024.68,0.00019178,2]
[376466656,1753987850426,-460.0,0.00019178,2]
[376466658,1753987850436,-460.0,0.00019178,2]
[376466660,1753987850447,-460.0,0.00019178,2]
[376466662,1753987850456,-460.0,0.00019178,2]
[376466664,1753987850466,-3392.79,0.00019178,2]
[376466666,1753987850476,-460.0,0.00019178,2]
[376466668,1753987850485,-460.0,0.00019178,2]
[376466670,1753987850495,-460.0,0.00019178,2]
[376466672,1753987850507,-460.0,0.00019178,2]
[376466674,1753987850517,-460.0,0.00019178,2]
[376466676,1753987850527,-3571.49,0.00019178,2]
[376466678,1753987850537,-460.0,0.00019178,2]
[376466680,1753987850546,-460.0,0.00019178,2]
[376466682,1753987850555,-460.0,0.00019178,2]
[376466684,1753987850564,-460.0,0.00019178,2]
[376466686,1753987850574,-460.0,0.00019178,2]
[376466688,1753987850584,-604.9,0.00019178,2]
[376466690,1753987850594,-461.14937447,0.00019178,2]
[376466692,1753987850604,-460.0,0.00019178,2]
[376466694,1753987850613,-460.0,0.00019178,2]
[376466696,1753987850623,-460.0,0.00019178,2]
[376466698,1753987850632,-460.0,0.00019178,2]
[376466700,1753987850642,-461.03441972,0.00019178,2]
[376466702,1753987850651,-460.0,0.00019178,2]
[376466704,1753987850661,-928.737376,0.00019178,2]
[376466706,1753987850670,-928.737376,0.00019178,2]
[376466708,1753987850679,-460.0,0.00019178,2]
[376466710,1753987850689,-928.737376,0.00019178,2]
[376466712,1753987850700,-992.01,0.00019178,2]
[376466714,1753987850709,-928.737376,0.00019178,2]
[376466717,1753987850719,-928.737376,0.00019178,2]
[376466719,1753987850729,-460.0,0.00019178,2]
[376466721,1753987850738,-928.737376,0.00019178,2]
[376466723,1753987850749,-460.0,0.00019178,2]
[376466725,1753987850759,-460.0,0.00019178,2]
[376466727,1753987850769,-460.0,0.00019178,2]
[376466729,1753987850779,-460.0,0.00019178,2]
[376466731,1753987850789,-928.737376,0.00019178,2]
[376466733,1753987850800,-1067.96,0.00019178,2]
[376466735,1753987850809,-529.7,0.00019178,2]
[376466737,1753987850820,-928.737376,0.00019178,2]
[376466739,1753987850830,-928.737376,0.00019178,2]
[376466741,1753987850840,-460.0,0.00019178,2]
[376466743,1753987850850,-928.737376,0.00019178,2]
[376466745,1753987850860,-460.0,0.00019178,2]
[376466747,1753987850869,-928.737376,0.00019178,2]
[376466749,1753987850879,-928.737376,0.00019178,2]
[376466751,1753987850889,-460.0,0.00019178,2]
[376466753,1753987850898,-460.0,0.00019178,2]
[376466755,1753987850907,-460.0,0.00019178,2]
[376466757,1753987850917,-460.0,0.00019178,2]
[376466759,1753987850927,-4552.39,0.00019178,2]
[376466761,1753987850936,-151.0,0.00019178,2]
[376466763,1753987850946,-460.0,0.00019178,2]
[376466765,1753987850956,-151.0,0.00019178,2]
[376466767,1753987850966,-151.0,0.00019178,2]
[376466769,1753987850975,-151.0,0.00019178,2]
[376466771,1753987850986,-151.0,0.00019178,2]
[376466773,1753987850995,-460.0,0.00019178,2]
[376466775,1753987851005,-460.0,0.00019178,2]
[376466777,1753987851015,-151.0,0.00019178,2]
[376466779,1753987851024,-1082.39,0.00019178,2]
[376466781,1753987851035,-460.0,0.00019178,2]
[376466783,1753987851046,-1722.87,0.00019178,2]
[376466785,1753987851056,-460.0,0.00019178,2]
[376466787,1753987851066,-460.0,0.00019178,2]
[376466789,1753987851075,-460.0,0.00019178,2]
[376466791,1753987851085,-460.0,0.00019178,2]
[376466793,1753987851095,-10218.76,0.00019178,2]
[376466795,1753987851104,-483.83,0.00019178,2]
[376466797,1753987851113,-463.2498998,0.00019178,2]
[376466799,1753987851123,-1136.52,0.00019178,2]
[376466801,1753987851132,-340.45414761,0.00019178,2]
[376466803,1753987851143,-460.0,0.00019178,2]
[376466805,1753987851152,-460.0,0.00019178,2]
[376466807,1753987851162,-460.0,0.00019178,2]
[376466810,1753987851172,-460.0,0.00019178,2]
[376466811,1753987851182,-151.0,0.00019178,2]
[376466813,1753987851192,-151.0,0.00019178,2]
[376466815,1753987851203,-464.82463464,0.00019178,2]
[376466818,1753987851213,-460.0,0.00019178,2]
[376466820,1753987851223,-556.5114077,0.00019178,2]
[376466821,1753987851233,-151.0,0.00019178,2]
[376466824,1753987851243,-211.046738,0.00019178,2]
[376466826,1753987851253,-460.0,0.00019178,2]
[376466828,1753987851263,-460.53977199,0.00019178,2]
[376466830,1753987851273,-510.64,0.00019178,2]
[376466832,1753987851283,-460.0,0.00019178,2]
[376466834,1753987851293,-460.0,0.00019178,2]
[376466836,1753987851303,-460.0,0.00019178,2]
[376466838,1753987851312,-733.45,0.00019178,2]
[376466840,1753987851322,-460.0,0.00019178,2]
[376466842,1753987851331,-1481.6,0.00019178,2]
[376466844,1753987851341,-460.0,0.00019178,2]
[376466846,1753987851351,-460.0,0.00019178,2]
[376466848,1753987851361,-3285.1,0.00019178,2]
[376466850,1753987851370,-460.0,0.00019178,2]
[376466864,1753987851511,-151.0,0.00019178,2]
[376466866,1753987851520,-151.0,0.00019178,2]
[376466868,1753987851530,-151.0,0.00019178,2]
[376466870,1753987851540,-151.0,0.00019178,2]
[376466872,1753987851549,-189.937268,0.00019178,2]
[376466874,1753987851559,-460.0,0.00019178,2]
[376466876,1753987851568,-460.0,0.00019178,2]
[376466878,1753987851578,-460.0,0.00019178,2]
[376466880,1753987851587,-460.0,0.00019178,2]
[376466882,1753987851596,-1291.85,0.00019178,2]
[376466884,1753987851606,-460.0,0.00019178,2]
[376466886,1753987851615,-565.92617757,0.00019178,2]
[376466888,1753987851625,-460.0,0.00019178,2]
[376466890,1753987851634,-460.0,0.00019178,2]
[376466892,1753987851644,-3607.26,0.00019178,2]
[376466894,1753987851653,-460.0,0.00019178,2]
[376466896,1753987851662,-460.0,0.00019178,2]
[376466898,1753987851672,-460.0,0.00019178,2]
[376466900,1753987851681,-624.12,0.00019178,2]
[376466902,1753987851691,-7469.65,0.00019178,2]
[376466904,1753987851704,-460.0,0.00019178,2]
[376466906,1753987851713,-460.0,0.00019178,2]
[376466908,1753987851722,-460.0,0.00019178,2]
[376466910,1753987851732,-460.0,0.00019178,2]
[376466912,1753987851741,-9839.83,0.00019178,2]
[376466914,1753987851750,-522.51,0.00019178,2]
[376466916,1753987851759,-460.0,0.00019178,2]
[376466918,1753987851769,-1042.64,0.00019178,2]
[376466920,1753987851778,-158.7577131,0.00019178,2]
[376466922,1753987851787,-460.0,0.00019178,2]
[376466924,1753987851797,-151.0,0.00019178,2]
[376466926,1753987851806,-151.0,0.00019178,2]
[376466928,1753987851815,-151.0,0.00019178,2]
[376466930,1753987851824,-500.0,0.00019178,2]
[376466932,1753987851833,-231.253795,0.00019178,2]
[376466934,1753987851843,-249.4282258,0.00019178,2]
[376466936,1753987851852,-150.0,0.00019178,2]
[376466937,1753987851861,-306.7897269,0.000192,2]
[376466939,1753987851870,-151.0,0.00019218,2]
[376466941,1753987851880,-5888.0,0.00019218,2]
[376466943,1753987851889,-977.0,0.0001922,2]
[376466945,1753987851898,-977.0,0.00019236,2]
[376466947,1753987851908,-151.0,0.00019236,2]
[376466949,1753987851918,-151.0,0.000193,2]
[376466951,1753987851927,-151.0,0.000193,2]
[376466953,1753987851936,-151.0,0.000193,2]
[376466955,1753987851947,-155.2057358,0.000193,2]
[376466957,1753987851959,-977.0,0.00019321,2]
[376466959,1753987851968,-250.936,0.00019328,2]
[376466961,1753987851978,-151.0,0.00019329,2]
[376466963,1753987851987,-201.601022,0.00019329,2]
[376466965,1753987851997,-151.0,0.00019329,2]
[376466967,1753987852007,-268.633281,0.00019329,2]
[376466969,1753987852017,-268.633281,0.00019329,2]
[376466971,1753987852027,-152.023422,0.00019329,2]
[376466973,1753987852037,-152.023422,0.00019329,2]
[376466975,1753987852046,-151.0,0.00019329,2]
[376466977,1753987852056,-151.0,0.00019329,2]
[376466979,1753987852066,-182.92149,0.00019329,2]
[376466981,1753987852076,-182.92149,0.00019329,2]
[376466982,1753987852086,-177.038864,0.00019329,2]
[376466984,1753987852097,-177.038864,0.00019329,2]
[376466986,1753987852107,-928.737376,0.00019329,2]
[376466988,1753987852116,-928.737376,0.00019329,2]
[376466990,1753987852126,-151.0,0.00019329,2]
[376466992,1753987852136,-52087.75848589,0.00019329,2]
[376466994,1753987852146,-2146.0,0.00019335,2]
[376466996,1753987852155,-635.0,0.00019335,2]
[376466998,1753987852165,-970.0,0.00019335,2]
[376467000,1753987852174,-150.0,0.00019335,2]
[376467002,1753987852183,-977.0,0.00019341,2]
[376467004,1753987852193,-500.0,0.00019351,2]
[376467006,1753987852209,-231.48161788,0.00019352,2]
[376467008,1753987852218,-460.682337,0.00019352,2]
[376467010,1753987852228,-526.848153,0.00019353,2]
[376467012,1753987852237,-160.0,0.00019353,2]
[376467014,1753987852246,-12642.0599901,0.00019353,2]
[376467016,1753987852256,-160.0,0.00019353,2]
[376467018,1753987852266,-216.18812866,0.00019353,2]
[376467020,1753987852276,-214.99831783,0.00019353,2]
[376467022,1753987852285,-159.520005,0.00019353,2]
[376467024,1753987852294,-159.520005,0.00019353,2]
[376467026,1753987852304,-151.0,0.00019353,2]
[376467028,1753987852313,-151.0,0.00019353,2]
[376467030,1753987852323,-151.0,0.00019353,2]
[376467032,1753987852332,-151.0,0.00019355,2]
[376467034,1753987852341,-151.0,0.00019355,2]
[376467036,1753987852351,-151.0,0.000194,2]
[376467038,1753987852360,-151.0,0.000194,2]
[376467040,1753987852369,-200.0,0.00019447,15]
[376467042,1753987852378,-200.0,0.00019447,15]
[376467044,1753987852387,-200.0,0.00019447,15]
[376467046,1753987852397,-200.0,0.00019447,15]
[376467048,1753987852406,-151.0,0.00019452,2]
[376467049,1753987852415,-151.0,0.00019452,2]
[376467052,1753987852425,-151.0,0.00019452,2]
[376467053,1753987852434,-151.0,0.00019452,2]
[376467055,1753987852445,-500.0,0.00019452,2]
[376467057,1753987852455,-151.0,0.00019452,2]
[376467059,1753987852465,-151.52475738,0.00019452,2]
[376467061,1753987852474,-802.0,0.00019452,2]
[376467063,1753987852483,-500.0,0.00019452,2]
[376467065,1753987852492,-151.26571026,0.00019452,2]
[376467067,1753987852503,-151.64426063,0.00019452,2]
[376467069,1753987852513,-500.0,0.00019452,2]
[376467071,1753987852522,-500.0,0.00019452,2]
[376467073,1753987852531,-500.0,0.00019452,2]
[376467075,1753987852542,-151.62392953,0.00019452,2]
[376467077,1753987852552,-151.0,0.00019452,2]
[376467079,1753987852561,-151.0,0.00019452,2]
[376467081,1753987852571,-151.0,0.00019452,2]
[376467082,1753987852580,-500.0,0.00019452,2]
[376467084,1753987852590,-152.00287072,0.00019452,2]
[376467086,1753987852599,-151.0,0.00019452,2]
[376467088,1753987852608,-151.0,0.00019452,2]
[376467090,1753987852617,-500.0,0.00019452,2]
[376467092,1753987852627,-151.0,0.00019452,2]
[376467094,1753987852636,-152.497948,0.00019452,2]
[376467095,1753987852645,-151.0,0.00019452,2]
[376467096,1753987852654,-151.0,0.00019452,2]
[376467097,1753987852663,-151.0,0.00019452,2]
[376467098,1753987852672,-151.0,0.00019452,2]
[376467099,1753987852681,-151.0,0.00019452,2]
[376467100,1753987852690,-151.0,0.00019452,2]
[376467101,1753987852701,-159.520005,0.00019452,2]
[376467102,1753987852710,-159.520005,0.00019452,2]
[376467103,1753987852719,-159.520005,0.00019452,2]
[376467104,1753987852728,-159.520005,0.00019452,2]
[376467105,1753987852737,-151.0,0.00019452,2]
[376467106,1753987852746,-151.0,0.00019452,2]
[376467107,1753987852755,-151.0,0.00019452,2]
[376467108,1753987852764,-151.0,0.00019452,2]
[376467109,1753987852773,-151.0,0.00019452,2]
[376467110,1753987852782,-151.0,0.00019452,2]
[376467111,1753987852792,-151.0,0.00019452,2]
[376467112,1753987852801,-231.965022,0.00019452,2]
[376467113,1753987852810,-151.0,0.00019452,2]
[376467114,1753987852820,-151.0,0.00019452,2]
[376467115,1753987852829,-151.0,0.00019452,2]
[376467116,1753987852839,-151.0,0.00019452,2]
[376467117,1753987852848,-151.0,0.00019452,2]
[376467119,1753987852857,-151.0,0.00019452,2]
[376467121,1753987852866,-151.0,0.00019452,2]
[376467122,1753987852875,-151.0,0.00019452,2]
[376467124,1753987852885,-151.0,0.00019452,2]
[376467126,1753987852894,-151.0,0.00019452,2]
[376467128,1753987852903,-460.0,0.00019452,2]
[376467130,1753987852912,-151.0,0.00019452,2]
[376467132,1753987852921,-231.009146,0.00019452,2]
[376467134,1753987852931,-559.6,0.00019452,2]
[376467137,1753987852941,-489.25,0.00019452,2]
[376467138,1753987852952,-254.584463,0.00019452,2]
[376467140,1753987852961,-254.584463,0.00019452,2]
[376467142,1753987852971,-254.584463,0.00019452,2]
[376467145,1753987852981,-254.584463,0.00019452,2]
[376467146,1753987852990,-460.0,0.00019452,2]
[376467148,1753987852999,-254.584463,0.00019452,2]
[376467150,1753987853008,-254.584463,0.00019452,2]
[376467152,1753987853018,-254.584463,0.00019452,2]
[376467154,1753987853027,-151.0,0.00019452,2]
[376467156,1753987853036,-151.0,0.00019452,2]
[376467158,1753987853045,-460.0,0.00019452,2]
[376467160,1753987853054,-151.0,0.00019452,2]
[376467162,1753987853063,-151.0,0.00019452,2]
[376467164,1753987853073,-151.0,0.00019452,2]
[376467166,1753987853082,-300.630583,0.00019452,2]
[376467168,1753987853091,-460.0,0.00019452,2]
[376467170,1753987853100,-460.0,0.00019452,2]
[376467172,1753987853109,-173.883419,0.00019452,2]
[376467174,1753987853119,-460.0,0.00019452,2]
[376467176,1753987853128,-460.0,0.00019452,2]
[376467178,1753987853137,-465.15977163,0.00019452,2]
[376467180,1753987853146,-274.33380802,0.00019452,2]
[376467182,1753987853155,-151.0,0.00019452,2]
[376467184,1753987853164,-151.0,0.00019452,2]
[376467186,1753987853173,-460.0,0.00019452,2]
[376467188,1753987853182,-301.999999,0.00019452,2]
[376467190,1753987853191,-460.0,0.00019452,2]
[376467192,1753987853202,-460.0,0.00019452,2]
[376467194,1753987853212,-460.0,0.00019452,2]
[376467196,1753987853221,-319.987641,0.00019452,2]
[376467198,1753987853230,-319.987641,0.00019452,2]
[376467200,1753987853239,-319.987641,0.00019452,2]
[376467202,1753987853249,-319.987641,0.00019452,2]
[376467204,1753987853258,-460.0,0.00019452,2]
[376467206,1753987853267,-319.987641,0.00019452,2]
[376467208,1753987853277,-319.987641,0.00019452,2]
[376467210,1753987853286,-319.987641,0.00019452,2]
[376467212,1753987853296,-319.987641,0.00019452,2]
[376467214,1753987853305,-460.0,0.00019452,2]
[376467216,1753987853314,-460.0,0.00019452,2]
[376467218,1753987853323,-454.216416,0.00019452,2]
[376467220,1753987853333,-454.216416,0.00019452,2]
[376467222,1753987853343,-454.216416,0.00019452,2]
[376467224,1753987853352,-454.216416,0.00019452,2]
[376467226,1753987853361,-454.216416,0.00019452,2]
[376467228,1753987853370,-460.0,0.00019452,2]
[376467230,1753987853380,-454.216416,0.00019452,2]
[376467232,1753987853389,-454.216416,0.00019452,2]
[376467234,1753987853399,-454.216416,0.00019452,2]